Cogmind - Beta 15 @@@ ROGUE MODE // 2025.05.09 @ 01:28:51 Player: Florist Result: Destroyed by H-66 Slayer with Heavy Assault Rifle Performance ------------- Evolutions (5) 2500 Regions Visited (5) 1000 Robots Destroyed (23) 115 Value Destroyed (616) 616 Prototype IDs (7) 140 Alien Tech Used (0) 0 Bonus (807) 807 TOTAL SCORE: 5178 Bonus ------- Follower Combat Kills 7 Registered with UFD 300 Met Optimus in HQ 500 Cogmind --------- Core Integrity 0/1000 Matter 112/300 Energy 98/100 System Corruption 22% Temperature Cool (0) Movement Core (50) Location -5/Factory Parts ------- > --- POWER (1) -------- (None) > --- PROPULSION (4) --- (None) > --- UTILITY (9) ------ Signal Interpreter > --- WEAPON (3) ------- (None) > --- INVENTORY (5) ---- Fission Core Scrap Suit Proton Bomb Trap Peak State ------------ > --- POWER ------------ Fission Core > --- PROPULSION ------- Field Propulsion Drive Field Propulsion Drive Nuclear Pulse Array > --- UTILITY ---------- Medium Battery Signal Interpreter Improved System Shield Drone Bay > --- WEAPON ----------- Improved Proton Missile Launcher > --- INVENTORY -------- Scrap Suit Proton Bomb Trap [Rating: 46] Favorites ----------- Power Ion Engine Engine Ion Engine Power Core Fission Core Propulsion Light Treads Treads Light Treads Leg Aluminum Leg Flight Unit Field Propulsion Drive Utility Signal Interpreter Device Scrap Suit Storage High-capacity Storage Unit Processor Signal Interpreter Hackware Improved System Shield Protection Weapon Shielding Weapon Medium Laser Energy Gun Medium Laser Ballistic Gun Assault Rifle Launcher Improved Proton Missile Launcher Impact Weapon Hammer Build | -11 -10 -10 -10 -7 -5 ------- Run | Yrd Mat Min Sub Scr Fac Slots Evolved 10 | . . . . . 10 Power . | . . . . . . Propulsion 2 | . . . . . 2 Utility 7 | . . . . . 7 Weapon 1 | . . . . . 1 Parts Attached 29 | 6 2 2 . . 19 Power 2 | 1 . . . . 1 Engine 1 | 1 . . . . . Core 1 | . . . . . 1 Reactor . | . . . . . . Propulsion 9 | 2 . . . . 7 Treads 3 | 2 . . . . 1 Leg 1 | . . . . . 1 Wheel . | . . . . . . Hover . | . . . . . . Flight 5 | . . . . . 5 Utility 10 | 1 1 1 . . 7 Device 3 | . . . . . 3 Storage 3 | 1 . 1 . . 1 Processor 1 | . 1 . . . . Hackware 1 | . . . . . 1 Protection 2 | . . . . . 2 Artifact . | . . . . . . Weapon 8 | 2 1 1 . . 4 Energy Gun 3 | 1 . . . . 2 Energy Cannon . | . . . . . . Ballistic Gun 3 | 1 1 . . . 1 Ballistic Cannon . | . . . . . . Launcher 1 | . . . . . 1 Special Weapon . | . . . . . . Impact Weapon 1 | . . 1 . . . Slashing Weapon . | . . . . . . Piercing Weapon . | . . . . . . Special Melee Weapon . | . . . . . . Unidentified Prototypes . | . . . . . . Corrupted Parts 1 | . . . . . 1 System Corruption 5 | . . . . . 5 Parts Lost 21 | . . 1 . . 20 Power 1 | . . 1 . . . Propulsion 9 | . . . . . 9 Utility 6 | . . . . . 6 Weapon 5 | . . . . . 5 Highest Loss Streak 13 | . . 1 . . 13 To Critical Strikes . | . . . . . . Average Backups 8 | 2 3 8 9 11 7 Power . | . . . . . . Propulsion 2 | 1 2 1 2 2 2 Utility 2 | . . 2 3 3 1 Weapon 4 | 1 1 3 4 5 2 Tool/Special . | . . . . . . Unused Backups 2 | . . 1 . . 1 Power . | . . . . . . Propulsion 1 | . . 1 . . . Utility . | . . . . . . Weapon 1 | . . . . . 1 Tool/Special . | . . . . . . Average Slot Usage (%) 73 | . 92 92 85 57 55 Engine 3 | . 14 7 . . . Treads 26 | . 28 28 28 28 11 Storage 13 | . 14 14 14 14 4 Processor 12 | . 6 14 14 14 5 Energy Gun 7 | . 14 14 14 . 7 Ballistic Gun 6 | . 14 13 14 . 3 Peak Build Rating 46 | 6 7 8 7 7 46 Average Rating 8 | 4 6 7 7 5 27 On Entrance 5 | . 6 7 7 7 6 Naked Turns . | . . . . . . Heaviest Build 58 | 13 14 49 44 44 58 Greatest Support 60 | 40 40 40 40 40 60 Greatest Overweight (x) 17 | . . 1 1 1 17 Average Overweight (x) . | . . . 1 . . Largest Inventory Capacity 20 | 8 8 20 20 20 20 Average Capacity 17 | 7 8 18 20 20 15 Most Carried 17 | 4 5 13 13 17 16 Average Carried 11 | 2 3 11 11 13 9 Final Capacity 20 | 8 8 20 20 20 5 Final Carried 17 | 3 4 13 11 17 4 Class Distribution -------------------- 93% | Mutant 3% | Derelict-Skirmisher Dominant Class ---------------- Mutant | -10/Materials Mutant | -10/Mines Mutant | -10/Subcaves Mutant | -7/Scraptown Derelict-Skirmisher | -5/Factory Resources | -11 -10 -10 -10 -7 -5 ----------- Run | Yrd Mat Min Sub Scr Fac Matter Collected 461 | 229 47 174 6 . 5 Remotely . | . . . . . . Salvage Created 754 | . 185 361 80 . 128 Parts 54 | . 13 24 8 . 9 Haulers Intercepted . | . . . . . . Recyclers Shooed . | . . . . . . Parts Field Recycled . | . . . . . . Retrieved Matter . | . . . . . . Parts Self-Destructed . | . . . . . . Prevented . | . . . . . . Kills | -11 -10 -10 -10 -7 -5 ------- Run | Yrd Mat Min Sub Scr Fac Combat Hostiles Destroyed 21 | . 4 12 2 . 3 Guns 18 | . 4 12 2 . . AOE 3 | . . . . . 3 Classes Destroyed 6 | . 2 3 1 . . Worker 2 | . 1 . . . 1 Tunneler 1 | . . 1 . . . Swarmer 7 | . . 5 . . 2 Grunt 11 | . 4 6 . . 1 Subdweller 2 | . . . 2 . . Assembled 1 | . . 1 . . . Best Kill Streak 3 | . 2 3 2 . 3 Combat Bots Only 3 | . 2 2 2 . 3 Max Kills in Single Turn 3 | . 1 2 1 . 3 Gunslinging . | . . . . . . Exploded 3 | . . . . . 3 Melee . | . . . . . . Uniques/NPCs Destroyed . | . . . . . . Combat | -11 -10 -10 -10 -7 -5 -------- Run | Yrd Mat Min Sub Scr Fac Hostile Shots Fired 288 | . 14 62 1 . 211 Missed 95 | . 3 16 1 . 75 Hits 193 | . 11 46 . . 136 Projectile 193 | . 11 46 . . 136 AOE 2 | . . . . . 2 Critical Strikes 8 | . . 1 . . 7 Damage Taken 3378 | . 121 501 . . 2756 Core 1125 | . 10 98 . . 1017 Absorbed by Shields . | . . . . . . Redirected to Shielding 50 | . . . . . 50 Core Remaining (%) 78 | 100 . . . 56 . Volleys Fired 79 | . 23 38 2 . 16 Largest 3 | . 2 2 2 . 3 Hottest 151 | . 70 70 70 . 151 Shots Fired 150 | . 46 76 4 . 24 Gun 145 | . 46 76 4 . 19 Cannon . | . . . . . . Launcher 5 | . . . . . 5 Special . | . . . . . . Kinetic 74 | . 23 38 2 . 11 Thermal 71 | . 23 38 2 . 8 Explosive . | . . . . . . Electromagnetic 5 | . . . . . 5 Robot Hit Streak 8 | . 4 5 7 . 8 Robot Miss Streak 5 | . 5 3 . . 2 Penetration Max . | . . . . . . Secondary Targets 1 | . 1 . . . . Max Gunslinging Chain 1 | . 1 . . . . Shots Hit Robots 82 | . 19 43 4 . 16 Core Hits 42 | . 9 19 3 . 11 Critical Kills 1 | . . 1 . . . Critical Parts Destroyed . | . . . . . . Critical Strikes 4 | . 2 1 . . 1 Burn 3 | . 2 . . . 1 Destroy 1 | . . 1 . . . Melee Attacks 7 | . . 6 . . 1 Impact 7 | . . 6 . . 1 Slashing . | . . . . . . Piercing . | . . . . . . Sneak Attacks . | . . . . . . Combat Hostiles . | . . . . . . Follow-up Attacks . | . . . . . . Damage Inflicted 1218 | . 223 550 49 . 396 Guns 991 | . 223 550 49 . 169 Cannons . | . . . . . . Explosions 192 | . . . . . 192 Melee 35 | . . . . . 35 Ramming . | . . . . . . Kinetic 439 | . 83 250 23 . 83 Thermal 552 | . 140 300 26 . 86 Explosive . | . . . . . . Electromagnetic 192 | . . . . . 192 Impact 35 | . . . . . 35 Slashing . | . . . . . . Piercing . | . . . . . . Highest Corruption 22 | . . . . . 22 Average Corruption 6 | . . . . . 6 Corruption Purged . | . . . . . . Corruption Blocked . | . . . . . . Effects 19 | . . . . . 19 Message Errors 6 | . . . . . 6 Matter Fused 1 | . . . . . 1 Heat Flow Errors 2 | . . . . . 2 Energy Discharges 2 | . . . . . 2 Data Loss (minor) 2 | . . . . . 2 Data Loss (major) 2 | . . . . . 2 Alerts 1 | . . . . . 1 Misdirections 3 | . . . . . 3 Overload Shots . | . . . . . . Overflow Damage . | . . . . . . Projectiles . | . . . . . . Explosions . | . . . . . . Melee . | . . . . . . Knockbacks 1 | . . . . . 1 Impact 1 | . . . . . 1 Kinetic . | . . . . . . Secondary . | . . . . . . Self-Inflicted Damage . | . . . . . . Shots . | . . . . . . Rammed . | . . . . . . Targets Rammed . | . . . . . . Kicked . | . . . . . . Crushed . | . . . . . . Highest Temperature 147 | . 146 123 . . 147 Average Temperature 42 | . 44 41 . . 40 Received Heat Transfer 366 | . 66 183 . . 117 Siege Activations . | . . . . . . Martial Activations . | . . . . . . Shielding Activations . | . . . . . . Robots Disrupted . | . . . . . . Combat Hostiles . | . . . . . . Robots Corrupted . | . . . . . . Combat Hostiles . | . . . . . . Parts Fried . | . . . . . . Impact Corruptions . | . . . . . . Robots Melted . | . . . . . . Combat Hostiles . | . . . . . . Parts Melted 1 | . 1 . . . . Heat Transferred 1776 | . 555 888 74 . 259 Parts Sabotaged . | . . . . . . Parts Stolen . | . . . . . . Parts Stripped . | . . . . . . Power Chain Reactions . | . . . . . . Alert | -11 -10 -10 -10 -7 -5 ------- Run | Yrd Mat Min Sub Scr Fac Maximum Alert Level 1 | . . . . . 1 Low Security (%) 96 | 100 100 100 . . 80 Level 1 3 | . . . . . 19 Level 2 . | . . . . . . Level 3 . | . . . . . . Level 4 . | . . . . . . Level 5 . | . . . . . . High Security . | . . . . . . Max Security . | . . . . . . Peak Influence 290 | . 50 118 . . 290 Initial 2 | . . 2 . . . Average 29 | . 10 28 . . 52 Influence Increases 904 | . 110 360 . . 434 Destroy 0b10 Robot/C 380 | . 80 240 . . 60 Destroy 0b10 Robot/NC 15 | . 5 5 . . 5 Destroy Leader 50 | . 10 30 . . 10 Allied During Kill 10 | . . 10 . . . Successful Hack 27 | . . . . . 27 Disable Machine 30 | . . 30 . . . Destroy Structure 2 | . . . . . 2 Partial Spotted 15 | . . . . . 15 Lose Combat Pursuer 375 | . 15 45 . . 315 Influence Decreases 627 | . 103 355 12 . 157 Entered New Map 12 | . . 5 7 . . Time Decay 525 | . 103 340 5 . 77 Lost Part 80 | . . 10 . . 70 Lost Ally 10 | . . . . . 10 Squads Dispatched 7 | . 1 . . . 6 Investigation 3 | . 1 . . . 2 Extermination 2 | . . . . . 2 Reinforcement 2 | . . . . . 2 Assault . | . . . . . . Garrison . | . . . . . . Intercept . | . . . . . . Searches Triggered . | . . . . . . Construction Impeded . | . . . . . . Haulers Reinforced . | . . . . . . Active Scanning Responses . | . . . . . . Cargo Convoy Interrupts . | . . . . . . Stealth | -11 -10 -10 -10 -7 -5 --------- Run | Yrd Mat Min Sub Scr Fac Distress Signals 2 | . 2 . . . . Communications Jammed . | . . . . . . Distress Signals . | . . . . . . Times Spotted 66 | . 11 14 2 . 39 Peak Tracking Total 15 | . 4 3 2 . 15 Tactical Retreats 12 | . 1 2 . . 9 Traps | -11 -10 -10 -10 -7 -5 ------- Run | Yrd Mat Min Sub Scr Fac Traps Triggered 4 | . 1 . . . 3 Indirectly . | . . . . . . Trap Hack Attempts . | . . . . . . Triggered . | . . . . . . Disarmed . | . . . . . . Reprogrammed . | . . . . . . Reused . | . . . . . . Traps Extracted . | . . . . . . Installed 3 | . . . 2 . 1 Triggered . | . . . . . . Most Traps Carried 4 | . . 4 4 2 2 Machines | -11 -10 -10 -10 -7 -5 ---------- Run | Yrd Mat Min Sub Scr Fac Machines Disabled 2 | . . 2 . . . Max in Single Turn 1 | . . 1 . . . Machines Repaired . | . . . . . . Machines Dismantled . | . . . . . . Machines Sabotaged . | . . . . . . Overloaded Fab Kills . | . . . . . . Hacking | -11 -10 -10 -10 -7 -5 --------- Run | Yrd Mat Min Sub Scr Fac Machines Accessed 14 | . . 1 . 9 4 Terminals 3 | . . 1 . . 2 Fabricators . | . . . . . . Repair Stations . | . . . . . . Recycling Units 2 | . . . . . 2 Scanalyzers . | . . . . . . Garrison Access . | . . . . . . Total Hacks 76 | . . 3 . 61 12 Successful 70 | . . 3 . 61 6 Failed 6 | . . . . . 6 Catastrophic . | . . . . . . Database Lockouts . | . . . . . . Manual 13 | . . . . 2 11 Terminals 10 | . . 3 . . 7 Fabricators . | . . . . . . Repair Stations . | . . . . . . Recycling Units 5 | . . . . . 5 Scanalyzers . | . . . . . . Garrison Access . | . . . . . . Terminal Hacks 66 | . . 3 . 61 2 Record 63 | . . 3 . 60 . Terminal Index 1 | . . . . . 1 Alert Level 1 | . . . . . 1 Proto ID Catalog 1 | . . . . 1 . Fabricator Hacks . | . . . . . . Repair Station Hacks . | . . . . . . Recycling Unit Hacks 1 | . . . . . 1 Report Inventory 1 | . . . . . 1 Scanalyzer . | . . . . . . Garrison Access Hacks . | . . . . . . Unauthorized Hacks 3 | . . . . . 3 Terminals 1 | . . . . . 1 Assimilate 1 | . . . . . 1 Fabricators . | . . . . . . Repair Stations 2 | . . . . . 2 Recycling Units . | . . . . . . Fedlink 2 | . . . . . 2 Scanalyzers . | . . . . . . Garrison Access . | . . . . . . Data Cores Recovered . | . . . . . . Used . | . . . . . . Hacking Detections 2 | . . 1 . . 1 Full Trace Events . | . . . . . . Feedback Events . | . . . . . . Feedback Blocked . | . . . . . . Robot Schematics Acquired . | . . . . . . Robots Built . | . . . . . . Authchips . | . . . . . . Time . | . . . . . . Total Robot Build Rating . | . . . . . . Part Schematics Acquired . | . . . . . . Parts Built . | . . . . . . Authchips . | . . . . . . Time . | . . . . . . Total Part Build Rating . | . . . . . . Parts Repaired . | . . . . . . Time . | . . . . . . Parts Recycled . | . . . . . . Recycled Matter . | . . . . . . Retrieved Matter . | . . . . . . Retrieved Components . | . . . . . . Parts Scanalyzed . | . . . . . . Part Schematics Acquired . | . . . . . . Parts Damaged . | . . . . . . Bothacking | -11 -10 -10 -10 -7 -5 ------------ Run | Yrd Mat Min Sub Scr Fac Used RIF Installer . | . . . . . . Robots Hacked . | . . . . . . Non-combat . | . . . . . . Combat . | . . . . . . Robot Hacks Applied . | . . . . . . Relay Couplers Released . | . . . . . . Fabnet Peak Effective % . | . . . . . . Robots Rewired . | . . . . . . Allies Hacked . | . . . . . . Hacks Repelled . | . . . . . . Allies | -11 -10 -10 -10 -7 -5 -------- Run | Yrd Mat Min Sub Scr Fac Total Allies 3 | . . 2 . . 1 Largest Group 2 | . . 2 2 . 1 Highest-Rated Group 45 | . . 45 45 . 26 Highest-Rated Ally 31 | . . 31 31 . 26 Total Orders . | . . . . . . Ally Attacks 5 | . . 2 3 . . Total Damage 62 | . . 21 41 . . Kills 1 | . . 1 . . . Allies Corrupted . | . . . . . . Allies Melted . | . . . . . . Intel | -11 -10 -10 -10 -7 -5 ------- Run | Yrd Mat Min Sub Scr Fac Active Infowar (turns) 275 | . . . . . 275 Sensors 275 | . . . . . 275 Robot Analysis Total . | . . . . . . Derelict Logs Recovered 1 | . . 1 . . . Drone Launches . | . . . . . . Drone Recoveries . | . . . . . . Exploration | -11 -10 -10 -10 -7 -5 ------------- Run | Yrd Mat Min Sub Scr Fac Turns Passed 7634 | 116 536 2559 346 3323 754 Spaces Moved 4240 | 67 284 979 140 2058 712 Core 37 | 7 . . . . 30 Treads 3748 | 60 284 979 140 2058 227 Legs . | . . . . . . Wheels . | . . . . . . Hover . | . . . . . . Flight 455 | . . . . . 455 Fastest Speed 35 | 50 160 160 240 160 35 Average Speed 165 | 148 160 222 240 160 90 Slowest Speed 900 | 160 160 240 240 240 900 Overloaded Moves . | . . . . . . Propulsion Burnouts . | . . . . . . Robots Hopped 9 | . . . . . 9 Potential Cave-ins 2 | . . . . . 2 Cave-ins Triggered . | . . . . . . Exploration Rate (%) 45 | 5 40 100 15 94 21 Regions Visited 5 Branch Regions 3 Pre-discovered Areas 2 | . . 1 . . 1 Known Exits Taken 4 | . 1 1 1 1 . Unknown Exits Taken 1 | 1 . . . . . Scrap Searched 1 | . . 1 . . . Spaces Dug . | . . . . . . Terrain Destroyed . | . . . . . . Melee . | . . . . . . Projectile . | . . . . . . AOE . | . . . . . . Terrain Rammed . | . . . . . . Walls Destroyed . | . . . . . . Machines Disabled . | . . . . . . Actions | -11 -10 -10 -10 -7 -5 --------- Run | Yrd Mat Min Sub Scr Fac Total 4708 | 84 324 1269 148 2087 796 Wait 307 | 3 12 233 3 26 30 Move 4219 | 66 283 978 139 2057 696 Hop 7 | . . . . . 7 Pick Up 37 | 9 3 10 . 2 13 Fast Attach . | . . . . . . Attach 29 | 6 2 . . . 21 Detach 5 | . . . . 2 3 Swap 4 | . . 3 . . 1 Drop 11 | . 1 1 2 . 7 Fire 79 | . 23 38 2 . 16 Melee 7 | . . 6 . . 1 Ram . | . . . . . . Kick . | . . . . . . Crush . | . . . . . . Escape Stasis . | . . . . . . Rewire . | . . . . . . Trap 3 | . . . 2 . 1 Miscellaneous . | . . . . . . Route ------- -11/Scrapyard -10/Materials (discovered 2 exits: *Mat / *Min) -10/Mines (discovered 3 exits: *Mat x2 / *Sub) -10/Subcaves -7/Scraptown (discovered 2 exits: *Fac x2) -5/Factory History --------- Turn | Location | Event 9 | -11/Scrapyard | Discovered new exit (range 16) 117 | -11/Scrapyard | Entered Materials 118 | -10/Materials | Met a group of wandering Federalists 308 | -10/Materials | Build established: Mutant 348 | -10/Materials | Discovered new exit (range 16) 367 | -10/Materials | Discovered new exit (range 16) 391 | -10/Materials | Identified exit to Materials 514 | -10/Materials | Identified exit to Mines 653 | -10/Materials | Entered Mines 878 | -10/Mines | Found a hidden stash of uninstalled traps 927 | -10/Mines | Discovered exit to Materials (range 6) 948 | -10/Mines | Discovered exit to Materials (range 3) 1015 | -10/Mines | Found DCF Scrap (11 items) 1111 | -10/Mines | Excavation squad dispatched 1111 | -10/Mines | A large section of the Mines collapsed 1375 | -10/Mines | Learned 2 Materials zone layouts 1475 | -10/Mines | Learned location of Storage (-7) 3164 | -10/Mines | Discovered new exit (range 6) 3178 | -10/Mines | Identified exit to Subcaves 3212 | -10/Mines | Entered Subcaves 3212 | -10/Subcaves | Accompanied by 2 allies 3213 | -10/Subcaves | Approached by a straggling Scientist 3217 | -10/Subcaves | Led the pair of lost Derelicts to an unsafe place 3237 | -10/Subcaves | Ambushed by Subdwellers from Twisted Machinery 3547 | -10/Subcaves | Scientist uncovered a shortcut to Scraptown 3556 | -10/Subcaves | Identified exit to Scraptown 3558 | -10/Subcaves | Entered Scraptown 3824 | -7/Scraptown | Visited Cyclists 3850 | -7/Scraptown | Heard Great Nut preacher, LISTEN AND RECITE! 3887 | -7/Scraptown | Received an X-ray algorithm 3901 | -7/Scraptown | Ran an X-ray algorithm 3916 | -7/Scraptown | Visited Bundlers 3988 | -7/Scraptown | Visited Cave Peace 4084 | -7/Scraptown | Visited UFD Registry 4112 | -7/Scraptown | Visited Observation Area 4233 | -7/Scraptown | Discovered new exit (range 11) 4265 | -7/Scraptown | Identified exit to Factory 4656 | -7/Scraptown | Visited The Evicted 4683 | -7/Scraptown | Visited Comm Corps 5304 | -7/Scraptown | Registered with UFD as "Steamranger" 5372 | -7/Scraptown | Visited Science Guys 5430 | -7/Scraptown | Visited Abandonware Association 5452 | -7/Scraptown | Learned abandonware demo "MELTYB.EXE" 5550 | -7/Scraptown | Visited Scrapoid Pod Storage 5584 | -7/Scraptown | Visited Modified Component R&D 5630 | -7/Scraptown | Visited Science Testing Area 5660 | -7/Scraptown | Visited Research Penetration Think Tank 5697 | -7/Scraptown | Visited LU-1G1's Boring Crew 6088 | -7/Scraptown | Visited Chapter 10 6157 | -7/Scraptown | Visited Curators Association 6455 | -7/Scraptown | Discovered exit to Factory (range 3) 6672 | -7/Scraptown | Met Optimus 6672 | -7/Scraptown | Accepted into 0bPrime 6711 | -7/Scraptown | Ran an X-ray algorithm 6850 | -7/Scraptown | Found Scrap Suit 6853 | -7/Scraptown | Found Scrap Suit 6881 | -7/Scraptown | Entered Factory 6881 | -5/Factory | Evolved 10 slots: Propulsion x2, Utility x7, Weapon x1 7106 | -5/Factory | Loaded intel: 8 recycling unit locations 7442 | -5/Factory | Lost 13 parts (5n4u4w) 7454 | -5/Factory | System corruption reached 10% 7561 | -5/Factory | Learned location of Protoforge (-3) 7564 | -5/Factory | Core integrity fell below 50% 7616 | -5/Factory | Spotted B-75 Beast 7627 | -5/Factory | Core integrity fell below 20% 7635 | -5/Factory | Destroyed by H-66 Slayer with Heavy Assault Rifle Last Messages --------------- 07611_ Door malfunctions. 07611_ Nuclear Pulse Array destroyed. 07613_ Imp. Proton Missile Launcher destroyed. 07614_ Critical hit (Burn: +37). 07617_ R-10 Processor collects Corrupted Carbon-fiber Leg. 07618_ Dropped Drone Bay. 07618_ Acquired Corrupted VTOL Module. 07618_ Imp. System Shield destroyed. 07618_ K-01 Serf cleans the Recycling Unit. 07619_ Integrated Corrupted VTOL Module (+5). 07622_ R-10 Processor collects Hvy. Laser. 07622_ K-01 Serf cleans the Recycling Unit. 07624_ R-10 Processor collects Corrupted Carbon-fiber Leg. 07625_ VTOL Module destroyed. 07625_ R-10 Processor collects Corrupted Lgt. Angular Momentum Engine. 07627_ Penetrated by Slug. 07627_ Med. Battery destroyed. 07629_ %JSCIDPG52D7UNQ:R/QAA8S1E=SH3